bitfinex/quotes_ETHUSD_20250801
["timestamp","ask_amount","ask_price","bid_price","bid_amount"]
[1754036661755,0.65,3614.3,3614.2,3.0]
[1754036661964,7.5864,3614.3,3614.2,3.0]
[1754036662184,7.7248,3614.3,3614.2,3.0]
[1754036663083,0.55,3614.2,3613.3,2.9078911]
[1754036663384,0.1,3613.7,3613.5,2.76736356]
[1754036663580,4.565,3613.6,3613.5,2.76736356]
[1754036663747,0.1,3613.7,3613.5,2.76736356]
[1754036663748,0.1,3613.7,3613.6,9.89679744]
[1754036663944,4.665,3613.7,3613.6,9.89679744]
[1754036664170,4.665,3613.7,3613.6,5.76732344]
[1754036664486,4.665,3613.7,3613.6,3.0]
[1754036664649,4.665,3613.7,3613.6,2.76732344]
[1754036664854,4.565,3613.7,3613.6,2.76732344]
[1754036665063,4.665,3613.7,3613.6,2.76732344]
[1754036665468,0.1,3613.7,3613.6,5.76732344]
[1754036665696,0.1,3614.1,3614.0,5.76701715]
[1754036665851,2.673,3614.2,3614.1,3.0]
[1754036666054,2.673,3614.2,3613.5,2.76734957]
[1754036666055,0.1,3613.7,3613.5,2.76734957]
[1754036666254,4.564,3613.6,3613.5,2.76740002]
[1754036666451,0.1,3613.5,3613.4,2.76746171]
[1754036666652,0.1,3613.5,3612.6,0.2037604]
[1754036666653,0.1,3613.1,3612.6,0.2037604]
[1754036666857,0.1,3612.7,3612.6,2.97184986]
[1754036667297,0.1384,3613.0,3612.9,2.76785961]
[1754036667483,4.564,3613.0,3612.9,25.03273061]
[1754036667793,4.664,3613.0,3612.9,20.57593961]
[1754036668003,2.573,3613.5,3613.2,2.7676298]
[1754036668171,2.573,3613.5,3613.4,2.76747661]
[1754036668357,1.9085,3613.8,3613.1,0.1384]
[1754036668358,0.1,3613.7,3613.5,2.76740002]
[1754036668559,0.1,3613.7,3613.6,29.13094644]
[1754036669098,4.664,3613.7,3611.8,4.564]
[1754036669268,4.664,3613.7,3609.2,20.0]
[1754036669269,0.1,3613.3,3613.2,2.7676298]
[1754036670180,0.1,3613.3,3613.0,2.76771973]
[1754036670181,0.65,3613.3,3612.7,0.1384]
[1754036670373,7.197,3613.9,3612.5,0.1384]
[1754036670374,0.1,3612.7,3612.5,0.1384]
[1754036670574,4.564,3612.6,3612.5,2.90653455]
[1754036670761,5.0269,3612.6,3612.5,2.76816608]
[1754036670963,4.564,3612.6,3612.5,2.76816608]
[1754036671159,0.1,3612.3,3611.2,0.69291839]
[1754036671359,0.1,3612.3,3612.2,6.71192399]
[1754036671598,0.1,3612.9,3612.5,3.0]
[1754036671800,0.1,3612.9,3612.8,6.71146422]
[1754036671962,5.1269,3612.9,3612.8,3.0]
[1754036672444,7.0354,3612.9,3612.8,3.0]
[1754036672598,0.1,3612.6,3612.2,0.1384]
[1754036672798,7.6238,3612.9,3611.0,2.76928111]
[1754036672799,0.1384,3612.2,3611.7,0.1384]
[1754036672984,0.1,3611.8,3611.7,0.1384]
[1754036673304,4.564,3612.1,3610.7,2.76950953]
[1754036673305,5.1269,3612.1,3611.3,2.76902844]
[1754036673604,0.1,3612.1,3612.0,6.71207728]
[1754036673902,1.9085,3612.5,3612.4,2.76824271]
[1754036673903,0.1,3612.5,3612.4,2.76824271]
[1754036674100,4.664,3612.5,3612.2,3.0]
[1754036674411,0.4629,3612.9,3612.8,5.76793622]
[1754036674412,0.1,3612.9,3612.8,5.76793622]
[1754036674569,4.664,3612.9,3612.8,5.76793622]
[1754036674771,0.1,3612.4,3611.4,3.943528]
[1754036675099,0.65,3612.2,3612.0,2.7685356]
[1754036675299,0.1,3611.7,3611.4,2.410862]
[1754036675501,0.1,3611.7,3611.6,2.7688559]
[1754036675702,0.1,3611.7,3611.6,9.7123839]
[1754036675703,4.664,3611.7,3611.6,9.7123839]
[1754036675867,0.1,3612.0,3611.9,5.76862593]
[1754036676064,4.664,3612.0,3611.9,9.71215393]
[1754036676486,4.664,3612.0,3611.9,9.22239793]
[1754036676891,0.1,3612.0,3611.9,9.22239793]
[1754036677093,4.663,3612.0,3611.9,9.22239793]
[1754036677499,0.1,3612.0,3611.9,9.71215393]
[1754036677695,4.664,3612.0,3611.9,9.71215393]
[1754036677907,0.1,3612.0,3611.9,9.71215393]
[1754036678093,4.664,3612.0,3611.9,9.71215393]
[1754036678477,6.649,3612.2,3612.1,6.71200063]
[1754036678808,11.213,3612.2,3612.1,9.71200063]
[1754036679115,4.564,3612.2,3612.1,9.71200063]
[1754036679298,0.1,3612.3,3612.2,6.71192399]
[1754036679610,0.1,3612.3,3612.1,3.943528]
[1754036679611,4.663,3612.3,3612.1,3.943528]
[1754036679787,4.663,3612.3,3612.2,8.94319199]
[1754036679971,5.1259,3612.3,3612.2,3.0]
[1754036680172,0.1,3611.7,3611.4,3.943528]
[1754036680378,4.563,3611.6,3611.5,5.76893257]
[1754036680577,4.563,3611.6,3611.3,2.76908592]
[1754036680578,0.1,3611.4,3611.3,2.76908592]
[1754036681083,0.1,3611.4,3611.3,9.39478792]
[1754036681283,0.1,3611.8,3611.7,3.0]
[1754036681501,0.1,3611.5,3611.4,2.76900924]
[1754036681714,5.1259,3611.5,3611.4,2.76900924]
[1754036681924,5.1259,3611.5,3611.2,2.76915786]
[1754036681925,5.1259,3611.5,3610.4,2.7697715]
[1754036682131,0.1,3611.0,3610.9,2.76939267]
[1754036682339,4.663,3611.0,3610.9,6.71292067]
[1754036682683,4.663,3611.0,3610.9,9.71292067]
[1754036682878,4.663,3611.0,3610.9,6.71292067]
[1754036683183,5.1259,3611.0,3610.9,9.71292067]
[1754036683708,4.663,3611.0,3610.9,9.71292067]
[1754036684108,4.663,3611.0,3610.9,5.76939267]
[1754036684314,4.663,3611.0,3610.9,9.71292067]
[1754036684776,0.1,3611.0,3610.9,9.71292067]
[1754036685196,4.663,3611.0,3610.9,9.71292067]
[1754036685396,0.1,3611.0,3610.9,9.85132067]
[1754036685599,4.663,3611.0,3610.9,9.85132067]
[1754036685814,0.6013,3611.5,3610.9,9.85132067]
[1754036685815,0.1,3611.1,3611.0,5.76931597]
[1754036685989,4.662,3611.1,3611.0,9.71284397]
[1754036686178,4.663,3611.1,3611.0,9.71284397]
[1754036686718,0.1,3611.3,3611.2,2.7691626]
[1754036686919,0.1,3611.3,3610.8,2.7694063]
[1754036686920,5.213,3611.3,3606.0,3.95529176]
[1754036687090,0.1,3610.4,3610.3,2.76985292]
[1754036687286,0.1,3610.4,3610.3,15.51563292]
[1754036687483,0.1,3610.4,3610.3,17.64663292]
[1754036687819,0.1,3610.0,3609.0,30.0]
[1754036688035,0.1,3610.0,3609.9,14.39484083]
[1754036688217,4.662,3610.0,3608.9,0.2115368]
[1754036688423,0.1,3609.7,3609.6,5.06752607]
[1754036688580,0.1,3609.9,3609.8,2.77023657]
[1754036688928,0.1,3609.9,3609.8,7.96029157]
[1754036689153,0.1,3609.5,3609.4,2.77054358]
[1754036689426,0.1,3609.3,3608.9,2.77091457]
[1754036689604,0.2384,3609.1,3609.0,5.77078483]
[1754036689923,0.2384,3609.1,3609.0,6.36762983]
[1754036690090,0.1,3608.4,3607.3,30.0]
[1754036690283,0.1384,3609.2,3608.3,2.77138818]
[1754036690605,0.1384,3609.2,3608.1,3.0]
[1754036690606,0.1,3609.2,3609.1,19.00051587]
[1754036690914,4.663,3609.2,3609.1,16.16551587]
[1754036691357,0.1,3609.2,3609.1,11.26282787]
[1754036691514,0.5349,3609.2,3609.1,11.26282787]
[1754036691719,5.6469,3609.2,3609.1,3.0]
[1754036691957,0.5349,3609.2,3609.1,2.77077387]
[1754036692256,4.662,3609.2,3609.1,2.77077387]
[1754036692470,4.663,3609.2,3609.1,5.77077387]
[1754036692631,5.2363,3609.2,3609.1,5.77077387]
[1754036692955,0.1,3608.7,3608.4,2.77131138]
[1754036693255,4.563,3608.6,3608.5,2.77123458]
[1754036693553,0.1,3608.7,3608.6,6.32680978]
[1754036693851,4.663,3608.7,3608.6,8.46060278]
[1754036694015,0.1,3608.7,3608.6,24.13468878]
[1754036694221,4.663,3608.7,3608.6,24.13468878]
[1754036694559,0.55,3608.6,3604.5,0.16773875]
[1754036694776,0.55,3608.6,3607.7,2.7718491]
[1754036694777,0.1,3607.8,3607.7,2.7718491]
[1754036695052,19.67851562,3608.7,3607.8,2.77169725]
[1754036695053,0.1,3607.9,3607.8,2.77169725]
[1754036695259,4.663,3607.9,3607.8,18.88162897]
[1754036695553,4.563,3607.9,3607.8,9.20733925]
[1754036695751,0.55,3608.8,3608.2,5.77139956]
[1754036695752,0.1,3608.3,3608.2,5.77139956]
[1754036695954,5.930672,3608.3,3608.2,2.77146499]
[1754036696260,0.55,3607.6,3606.9,21.364289]
[1754036696566,0.1,3607.0,3606.4,29.677457]
[1754036696775,0.1,3607.0,3606.9,2.77246388]
[1754036697078,4.563,3607.0,3606.9,19.55660488]
[1754036697364,5.0979,3607.0,3606.0,15.795808]
[1754036697565,4.663,3607.0,3606.9,2.77246388]
[1754036697771,4.6098893,3607.0,3606.9,21.765702]
[1754036697973,0.0468893,3606.4,3605.9,0.20447032]
[1754036698267,0.0468893,3606.4,3606.3,2.77292515]
[1754036698448,5.5957893,3606.4,3606.3,5.68438615]
[1754036698631,0.0468893,3606.4,3606.3,5.68438615]
[1754036698853,0.0468893,3605.9,3605.8,2.77330966]
[1754036699066,0.0468893,3605.9,3605.8,9.72585366]
[1754036699269,0.0468893,3606.2,3606.1,5.94402194]
[1754036699575,0.0468893,3606.2,3606.1,5.77307894]
[1754036699957,0.5968893,3605.7,3605.6,0.002]
[1754036700166,0.5968893,3605.7,3605.6,2.7754635]
[1754036700371,0.4349,3608.1,3605.7,30.0]
[1754036700556,8.6171,3609.1,3608.2,2.77146499]
[1754036700752,1.267672,3608.3,3608.2,8.60646499]
[1754036701056,1.267672,3608.3,3608.2,3.0]
[1754036701251,1.267672,3608.3,3606.0,4.565]
[1754036701252,7.792772,3608.3,3606.0,4.565]
[1754036701471,13.15541562,3608.0,3606.2,6.489632]
[1754036701672,13.15541562,3608.0,3605.8,2.78025961]
[1754036701673,13.15541562,3608.0,3607.0,2.77231947]
[1754036701889,13.15541562,3608.0,3605.8,2.77325961]
[1754036701890,0.9849,3607.9,3607.1,2.77226989]
[1754036702051,0.55,3607.2,3606.4,2.77278396]
[1754036702254,0.55,3607.2,3605.7,2.77338658]
[1754036702255,0.55,3606.5,3605.7,2.7733338]
[1754036702557,4.567,3606.4,3605.1,0.2061382]
[1754036702706,4.567,3606.4,3605.2,2.77371973]
[1754036702878,0.9849,3606.3,3604.1,2.77458133]
[1754036703077,3.75783915,3606.3,3605.0,2.77391445]
[1754036703428,2.77244853,3607.0,3604.2,2.77451658]
[1754036703429,0.55,3606.1,3604.6,0.2080118]
[1754036703603,1.268462,3606.2,3606.0,2.77311556]
[1754036703800,1.268462,3606.2,3606.1,3.0]
[1754036703801,0.833562,3606.2,3606.1,3.0]
[1754036704126,0.4349,3607.6,3606.7,3.0]
[1754036704418,0.4349,3607.6,3607.5,2.77200277]
[1754036704619,6.66,3608.0,3607.9,2.77169544]
[1754036704785,4.58,3608.3,3608.2,11.71297]
[1754036705109,4.58,3608.3,3608.2,26.74805399]
[1754036705300,0.4349,3608.9,3608.8,2.77100421]
[1754036705805,0.1384,3608.9,3608.8,2.77100421]
[1754036706111,0.4349,3610.0,3608.9,32.07320242]
[1754036706285,1.9601,3611.0,3610.1,2.77000637]
[1754036706286,6.66,3610.2,3610.1,2.77000637]
[1754036706610,6.66,3610.2,3609.5,5.7703994]
[1754036706611,0.832659,3610.1,3610.0,2.77006786]
[1754036706772,11.8313,3610.2,3610.0,2.77006786]
[1754036706974,13.15541562,3611.6,3610.7,5.76954607]
[1754036706975,6.659,3611.6,3610.7,5.76954607]
[1754036707174,0.4349,3611.3,3610.7,5.76954607]
[1754036707711,4.597,3611.2,3610.7,5.76954607]
[1754036708012,4.6,3611.7,3611.6,2.7688559]
[1754036708211,4.6,3611.7,3611.6,5.7688559]
[1754036708510,7.0939,3612.9,3611.7,3.0]
[1754036708683,0.4349,3612.8,3611.5,0.20828999]
[1754036708888,0.4349,3612.8,3612.2,2.76838074]
[1754036708889,4.601,3612.7,3612.2,2.76838074]
[1754036709193,0.4349,3612.6,3611.4,3.0]
[1754036709375,4.601,3612.5,3611.2,3.2129279]
[1754036709578,0.4349,3612.7,3611.5,2.029116]
[1754036709913,4.608,3612.6,3611.6,3.0]
[1754036710412,5.0399,3612.5,3612.0,3.0]
[1754036710602,0.9849,3612.4,3611.0,3.0]
[1754036710798,0.9849,3612.4,3611.4,3.0]
[1754036711013,0.4349,3612.3,3611.2,2.7691626]
[1754036711197,0.55,3612.1,3610.5,9.075957]
[1754036711509,0.55,3611.9,3610.3,0.20926749]
[1754036711804,13.59031562,3612.0,3610.7,2.76951109]
[1754036711805,0.55,3611.7,3610.7,2.76951109]
[1754036712024,0.4349,3611.8,3611.0,4.350028]
[1754036712172,4.604,3611.6,3611.4,2.7689414]
[1754036712373,4.603,3611.5,3611.4,2.7689414]
[1754036712570,4.603,3611.5,3611.4,3.0]
[1754036713182,5.0379,3611.5,3610.9,2.027162]
[1754036713375,5.0379,3611.5,3611.0,3.0]
[1754036713716,0.4349,3611.4,3610.4,2.385483]
[1754036713918,0.4349,3611.4,3610.9,2.7693697]
[1754036714118,0.4349,3611.3,3610.7,3.0]
[1754036714319,4.603,3611.5,3611.2,2.7691626]
[1754036714526,4.603,3611.5,3610.9,3.0]
[1754036714527,0.4349,3611.4,3610.9,3.0]
[1754036714823,0.4349,3611.4,3611.1,3.0]
[1754036715121,2.395,3611.3,3610.2,6.736969]
[1754036715291,0.4349,3611.3,3610.5,3.0]
[1754036715620,0.55,3611.8,3611.3,2.7690612]
[1754036715821,0.55,3611.6,3610.7,3.0]
[1754036716019,0.4349,3611.5,3610.6,2.76960775]
[1754036716220,0.4349,3611.5,3609.6,2.77037949]
[1754036716421,0.55,3611.3,3609.8,21.71878]
[1754036716586,0.55,3611.1,3610.7,2.76950248]
[1754036716788,0.55,3610.9,3610.5,3.0]
[1754036717138,0.55,3610.7,3608.7,2.77102588]
[1754036717290,0.1384,3610.6,3610.1,0.1384]
[1754036717490,0.1384,3610.2,3610.1,2.76995834]
[1754036717691,5.2126,3610.2,3609.2,2.77064901]
[1754036717911,0.1384,3610.0,3609.8,2.77016413]
[1754036718120,0.1384,3610.0,3609.9,2.77015983]
[1754036718327,0.1384,3610.0,3609.9,3.0]
[1754036718523,0.6056,3610.0,3609.9,5.77015983]
[1754036719028,0.6056,3610.0,3609.9,3.0]
[1754036719228,0.1384,3610.0,3609.9,3.0]
[1754036719554,0.1384,3610.2,3610.0,3.0]
[1754036719837,0.1384,3610.0,3609.5,0.1384]
[1754036720126,0.4672,3609.9,3609.5,0.1384]
[1754036720301,0.4672,3609.8,3608.4,2.77129089]
[1754036720487,0.1384,3609.7,3609.2,2.77064354]
[1754036720816,0.1384,3609.7,3609.0,3.0]
[1754036720817,4.602,3609.6,3609.0,3.0]
[1754036721006,4.602,3609.6,3609.5,5.77046682]
[1754036721331,4.602,3609.6,3609.5,3.0]
[1754036721895,5.0692,3609.6,3609.5,3.0]
[1754036722494,4.602,3609.6,3609.5,3.0]
[1754036722828,5.0692,3609.6,3609.5,3.0]
[1754036723036,4.602,3609.6,3609.5,3.0]
[1754036723396,0.1384,3609.7,3609.6,5.77039007]
[1754036723627,0.1384,3610.4,3610.2,2.76986636]
[1754036723790,4.594,3610.3,3610.2,5.7699273]
[1754036723990,4.594,3610.3,3610.1,3.0]
[1754036724306,4.594,3610.3,3610.1,2.76997887]
[1754036724631,4.594,3610.3,3609.3,2.77056216]
[1754036724632,0.55,3610.1,3609.3,2.77056216]
[1754036724817,0.1384,3609.7,3609.5,3.0]
[1754036725142,0.1384,3609.7,3609.5,2.77046682]
[1754036725300,4.603,3609.6,3609.5,8.102737]
[1754036725637,0.1384,3610.1,3610.0,5.7700831]
[1754036725799,0.1384,3610.1,3610.0,3.0]
[1754036726131,4.7404,3610.1,3610.0,3.0]
[1754036726709,5.2076,3610.1,3610.0,3.0]
[1754036726906,0.55,3610.0,3608.8,0.20578525]
[1754036727104,0.55,3610.0,3609.1,0.1384]
[1754036727105,0.1384,3609.6,3609.1,0.1384]
[1754036727329,0.1384,3609.6,3609.5,2.77046682]
[1754036727539,4.7364,3609.6,3609.5,2.77046682]
[1754036727733,4.598,3609.6,3609.5,2.77046682]
[1754036728636,0.1384,3609.8,3609.7,5.77031332]
[1754036729060,4.7344,3609.8,3609.7,20.24952032]
[1754036729218,0.1384,3609.8,3609.7,14.43116032]
[1754036729422,0.1384,3610.6,3610.5,3.0]
[1754036729617,0.1384,3610.9,3610.8,5.76946936]
[1754036729915,3.37217561,3611.0,3610.9,5.76939267]
[1754036730115,6.656,3611.6,3611.3,2.76908592]
[1754036730354,6.656,3611.6,3611.3,17.83453292]
[1754036730552,4.596,3611.4,3611.3,3.0]
[1754036730721,0.001,3611.4,3611.3,5.76908592]
[1754036730923,4.596,3611.4,3611.3,5.76908592]
[1754036731160,4.596,3611.4,3611.0,0.1384]
[1754036731161,5.0632,3611.4,3609.4,0.007]
[1754036731458,0.1384,3611.1,3611.0,2.76931597]
[1754036731663,4.7324,3611.1,3611.0,2.76931597]
[1754036732022,0.1384,3611.1,3611.0,5.76931597]
[1754036732357,4.7324,3611.1,3611.0,5.76931597]
[1754036732518,0.001,3611.4,3611.3,2.76908592]
[1754036732930,4.593,3611.4,3611.3,5.90748592]
[1754036733142,5.0602,3611.4,3609.9,2.77014221]
[1754036733316,1.0172,3611.3,3609.7,2.77027629]
[1754036733520,2.76935654,3611.0,3609.8,2.77017598]
[1754036733742,9.8212,3610.9,3610.2,2.76987809]
[1754036733955,9.8212,3610.9,3609.8,2.77022422]
[1754036733956,0.55,3610.7,3609.8,2.77022422]
[1754036734158,0.4672,3610.6,3609.2,5.682857]
[1754036734357,0.4672,3610.6,3610.0,3.0]
[1754036734856,4.601,3610.5,3610.0,2.77002459]
[1754036735017,0.4672,3610.4,3610.2,5.76985967]
[1754036735218,0.55,3610.8,3610.4,2.76975602]
[1754036735414,5.0662,3610.7,3610.5,2.76969757]
[1754036735654,4.599,3610.6,3610.5,5.76969757]
[1754036735856,4.599,3610.6,3610.5,3.0]
[1754036736079,4.599,3610.6,3607.9,2.77169544]
[1754036736080,2.77003464,3610.1,3607.9,2.77169544]
[1754036736218,0.55,3610.5,3608.5,2.77123458]
[1754036736430,0.55,3610.3,3608.6,0.4664]
[1754036736733,0.55,3609.7,3608.2,0.4664]
[1754036736939,0.55,3609.5,3608.2,0.4664]
[1754036737348,0.55,3609.5,3607.7,1.03607078]
[1754036737349,0.55,3609.2,3607.7,1.03607078]
[1754036737546,0.55,3609.0,3608.6,2.77114738]
[1754036737737,4.623,3608.9,3608.6,2.77114738]
[1754036738162,4.623,3608.9,3608.8,2.77100421]
[1754036738349,4.624,3608.9,3608.8,2.77100421]
[1754036738521,4.624,3608.9,3608.8,3.0]
[1754036738962,0.55,3609.4,3608.9,3.0]
[1754036739265,0.55,3609.2,3608.1,3.4664]
[1754036739422,0.55,3609.2,3608.9,2.77086245]
[1754036739621,6.655,3609.9,3608.3,3.0]
[1754036739825,4.617,3609.8,3609.4,2.77051267]
[1754036740106,6.655,3609.9,3609.4,2.77051267]
[1754036740275,6.655,3609.9,3608.7,0.4664]
[1754036740424,6.655,3609.9,3608.9,19.52145]
[1754036740769,4.617,3609.8,3609.7,2.77031332]
[1754036741278,6.655,3609.9,3609.8,2.77023657]
[1754036741450,11.272,3609.9,3609.8,2.77023657]
[1754036741771,4.616,3609.9,3609.8,2.77023657]
[1754036741973,0.001,3610.8,3610.7,2.76954607]
[1754036742147,0.001,3610.8,3610.7,14.45714707]
[1754036742342,0.001,3610.8,3610.7,13.14067707]
[1754036742670,0.001,3611.4,3611.3,5.76908592]
[1754036742849,4.616,3611.4,3611.3,11.54962792]
[1754036743045,4.616,3611.4,3611.3,12.95296992]
[1754036743369,4.616,3611.4,3611.3,5.76908592]
[1754036743561,4.614,3611.4,3611.3,6.23548592]
[1754036743758,0.001,3611.4,3611.3,8.50648592]
[1754036743977,4.614,3611.4,3611.3,8.50648592]
[1754036744488,4.614,3611.4,3611.3,9.50862392]
[1754036744650,4.614,3611.4,3611.3,6.37388592]
[1754036744853,4.61,3611.4,3611.3,12.31648592]
[1754036745152,4.61,3611.4,3611.3,10.35169392]
[1754036745661,4.61,3611.4,3611.3,6.37388592]
[1754036745866,0.001,3611.4,3611.3,14.81394492]
[1754036746390,0.001,3611.4,3611.3,13.88969492]
[1754036746768,0.001,3611.8,3611.7,32.76877924]
[1754036747273,0.001,3611.8,3611.7,23.58244724]
[1754036747637,4.303,3611.9,3611.8,23.93665058]
[1754036747788,4.303,3611.9,3611.8,15.86355058]
[1754036748085,0.6884,3612.5,3612.4,2.76824271]
[1754036748262,5.2874,3612.5,3612.0,0.1384]
[1754036748588,0.55,3612.0,3611.6,0.1384]
[1754036748772,4.597,3611.9,3611.5,0.1384]
[1754036748979,5.147,3611.9,3611.8,5.76870258]
[1754036749175,5.147,3611.9,3611.3,2.76902551]
[1754036749176,0.55,3611.5,3611.3,2.76902551]
[1754036749392,4.638,3612.4,3611.3,5.528848]
[1754036749580,0.1384,3612.0,3611.6,3.0]
[1754036749764,4.2,3612.4,3612.1,2.76842114]
[1754036749970,4.6,3612.3,3612.1,2.76841565]
[1754036750182,4.7384,3612.3,3612.1,2.76841565]
[1754036750372,0.55,3612.2,3612.1,5.76841565]
[1754036750567,4.2,3612.4,3612.2,2.76839599]
[1754036750770,4.597,3612.3,3612.2,2.768371]
[1754036750971,4.597,3612.3,3610.8,2.7694585]
[1754036751168,0.55,3612.2,3611.8,0.1384]
[1754036751386,0.6884,3611.9,3611.8,3.0]
[1754036751593,0.55,3611.8,3610.2,0.4425]
[1754036751898,0.438,3611.7,3610.1,2.7699693]
[1754036752064,0.55,3611.0,3610.0,4.363218]
[1754036752268,5.168,3610.9,3610.8,2.76946936]
[1754036752614,0.55,3610.8,3610.7,2.76953441]
[1754036752897,1e-08,3610.9,3610.8,33.21196936]
[1754036753058,10.854,3612.9,3611.8,3.0]
[1754036753260,6.654,3612.9,3612.7,2.76798698]
[1754036753494,6.7924,3612.9,3612.8,2.76793622]
[1754036753695,6.7924,3612.9,3612.4,0.1384]
[1754036753910,11.4384,3612.9,3612.4,0.1384]
[1754036754095,11.4384,3612.9,3610.9,2.76934169]
[1754036754096,0.438,3612.8,3611.9,2.239865]
[1754036754417,0.1384,3612.6,3612.1,3.1384]
[1754036754587,0.55,3612.5,3612.3,3.0]
[1754036754906,5.193,3612.5,3612.4,5.76824271]
[1754036755074,6.654,3612.9,3612.4,5.76824271]
[1754036755274,0.1384,3612.8,3612.6,2.76805337]
[1754036755471,6.654,3612.9,3612.8,2.76793622]
[1754036755674,4.639,3612.7,3612.6,3.0]
[1754036755874,5.3274,3612.7,3612.6,3.0]
[1754036756179,5.3284,3612.7,3612.6,3.0]
[1754036756686,5.3284,3612.7,3612.0,2.76847768]
[1754036756687,0.438,3613.6,3612.4,0.20528438]
[1754036756901,4.676,3613.5,3612.6,5.415249]
[1754036757106,4.676,3613.5,3612.9,3.0]
[1754036757411,4.676,3613.5,3612.8,2.76790748]
[1754036757412,13.59341562,3613.4,3611.8,8.463364]
[1754036757581,13.59341562,3613.4,3611.3,0.4425]
[1754036757582,15.9229152,3613.4,3612.0,3.0]
[1754036757778,5.115,3613.3,3612.4,3.0]
[1754036757978,4.676,3613.2,3612.3,0.21133377]
[1754036758180,0.438,3613.3,3612.2,3.0]
[1754036758405,4.675,3613.1,3612.4,3.0]
[1754036758591,0.438,3613.3,3612.4,3.0]
[1754036758794,4.675,3613.2,3612.3,0.20846499]
[1754036758996,4.675,3613.2,3612.0,3.0]
[1754036758997,0.55,3613.1,3612.0,3.0]
[1754036759316,0.55,3612.9,3611.8,2.76867744]
[1754036759617,0.55,3612.7,3611.8,3.20393314]
[1754036759918,0.55,3612.5,3611.8,2.97263265]
[1754036760132,7.203,3612.5,3611.9,3.0]
[1754036760282,7.203,3612.5,3610.8,0.68130161]
[1754036760482,0.55,3612.3,3610.2,1.9867]
[1754036760696,0.438,3612.2,3610.5,2.76969948]
[1754036760901,5.219,3612.1,3611.1,2.76918632]
[1754036761098,5.219,3612.1,3610.7,3.0]
[1754036761322,0.55,3611.9,3610.5,0.21094808]
[1754036761636,0.55,3611.7,3610.3,8.94727]
[1754036761836,0.438,3612.2,3611.2,3.0]
[1754036762003,5.216,3612.1,3611.2,3.0]
[1754036762331,0.438,3612.2,3611.5,3.0]
[1754036762490,4.666,3612.1,3612.0,5.76849209]
[1754036762807,4.666,3612.1,3612.0,3.0]
[1754036762982,4.665,3612.1,3612.0,2.76853521]
[1754036763422,4.665,3612.1,3612.0,5.76853521]
[1754036763624,4.665,3612.1,3612.0,3.0]
[1754036763983,4.665,3612.1,3611.8,0.002]
[1754036763984,0.55,3612.0,3611.8,0.002]
[1754036764189,2.76862593,3611.9,3611.8,0.002]
[1754036764522,5.58722593,3611.9,3611.8,0.002]
[1754036765021,10.24822593,3611.9,3611.8,0.002]
[1754036766190,10.24822593,3611.9,3611.8,1e-08]
[1754036766524,3.31893257,3611.5,3611.4,0.002]
[1754036766723,21.26774819,3611.5,3611.4,0.002]
[1754036767024,23.53634819,3611.5,3611.4,0.002]
[1754036767805,0.55,3610.5,3609.1,2.327535]
[1754036768006,0.1384,3610.0,3609.5,2.90880869]
[1754036768330,4.661,3609.9,3609.2,2.7706971]
[1754036768496,4.661,3609.9,3609.4,0.1384]
[1754036768897,0.55,3609.8,3609.4,0.1384]
[1754036769232,0.55,3609.5,3609.0,0.34777233]
[1754036769430,0.55,3609.3,3608.7,0.1384]
[1754036769631,0.1384,3609.1,3608.6,2.77315637]
[1754036769929,4.659,3609.0,3608.6,0.002]
[1754036770136,0.6884,3609.1,3608.8,2.77094635]
[1754036770349,0.6884,3609.1,3608.6,2.77315458]
[1754036770350,4.659,3609.0,3608.6,0.002]
[1754036770512,6.654,3609.4,3609.3,3.0]
[1754036770707,6.654,3609.4,3609.3,5.77062034]
[1754036770908,11.313,3609.4,3609.3,5.77062034]
[1754036771558,11.313,3609.4,3609.3,3.0]
[1754036771845,11.31,3609.4,3609.3,5.77062034]
[1754036772214,0.1384,3609.5,3609.4,5.77054358]
[1754036772413,0.438,3611.3,3609.6,3.0]
[1754036772747,0.1384,3610.9,3610.8,2.76939998]
[1754036773051,0.1384,3610.9,3609.8,3.0]
[1754036773052,5.094,3610.9,3610.3,3.0]
[1754036773236,0.1384,3610.7,3610.6,5.76962277]
[1754036773410,0.438,3610.7,3610.3,3.0]
[1754036773615,4.656,3610.6,3610.5,5.76969948]
[1754036773949,0.1384,3610.5,3610.4,3.0]
[1754036774135,0.1384,3610.5,3610.4,2.76976183]
[1754036774332,4.656,3610.5,3610.4,2.76976183]
[1754036774837,0.1384,3610.8,3610.7,2.76954607]
[1754036775355,6.655,3611.0,3610.9,5.76939267]
[1754036775549,11.307,3611.0,3610.9,5.76939267]
[1754036776046,6.655,3611.0,3610.9,5.76939267]
[1754036776345,11.304,3611.0,3610.9,6.35029267]
[1754036776543,11.304,3611.0,3610.9,5.90779267]
[1754036776845,6.655,3611.0,3610.9,5.90779267]
[1754036777015,11.302,3611.0,3610.9,5.90779267]
[1754036777411,11.302,3611.0,3610.9,5.76939267]
[1754036778175,11.302,3611.0,3610.9,3.0]
[1754036778527,11.302,3611.0,3610.9,5.76939267]
[1754036778724,11.302,3611.0,3610.3,3.0]
[1754036778943,11.302,3611.0,3610.9,2.76939267]
[1754036779332,0.55,3610.9,3609.9,0.1384]
[1754036779533,0.1384,3610.5,3610.0,12.3439131]